[Event "Early-Titled-Tuesday-Blitz-April-16-2024"]
[Site "Chess.com"]
[Date "2024.04.16"]
[Round "1"]
[White "AlmasRakhmatullaev"]
[Black "AktilekAskarovich"]
[Result "1-0"]
[WhiteElo "2860"]
[BlackElo "2488"]
[TimeControl "180+1"]
[EndTime "8:02:05 PDT"]
[Termination "AlmasRakhmatullaev won by resignation"]

1. e4 {[%clk 0:03:00.9]} 1... c6 {[%clk 0:02:59.4]} 2. d4 {[%clk 0:02:58.9]}
2... d5 {[%clk 0:02:59.4]} 3. exd5 {[%clk 0:02:58.2]} 3... cxd5 {[%clk
0:02:59.4]} 4. c4 {[%clk 0:02:58.6]} 4... Nf6 {[%clk 0:02:59]} 5. Nc3 {[%clk
0:02:58.2]} 5... Nc6 {[%clk 0:02:59.1]} 6. Nf3 {[%clk 0:02:57.9]} 6... Bg4
{[%clk 0:02:59.3]} 7. cxd5 {[%clk 0:02:57.4]} 7... Nxd5 {[%clk 0:02:58.8]} 8.
Qb3 {[%clk 0:02:57]} 8... Bxf3 {[%clk 0:02:59.1]} 9. gxf3 {[%clk 0:02:56.6]}
9... e6 {[%clk 0:02:59.1]} 10. Qxb7 {[%clk 0:02:50.7]} 10... Nxd4 {[%clk
0:02:58.9]} 11. Bb5+ {[%clk 0:02:45.5]} 11... Nxb5 {[%clk 0:02:58.9]} 12. Qc6+
{[%clk 0:02:45.9]} 12... Ke7 {[%clk 0:02:59.3]} 13. Qc5+ {[%clk 0:02:43.1]}
13... Qd6 {[%clk 0:02:06.1]} 14. Nxd5+ {[%clk 0:02:41.8]} 14... exd5 {[%clk
0:02:07]} 15. Qxb5 {[%clk 0:02:42.4]} 15... f6 {[%clk 0:02:07.2]} 16. Qb7+
{[%clk 0:02:37.1]} 1-0

[Event "Early-Titled-Tuesday-Blitz-April-16-2024"]
[Site "Chess.com"]
[Date "2024.04.16"]
[Round "1"]
[White "enriquebutti"]
[Black "UNSTOPPABLE_LEGEND"]
[Result "1-0"]
[WhiteElo "2173"]
[BlackElo "2558"]
[TimeControl "180+1"]
[EndTime "8:03:04 PDT"]
[Termination "enriquebutti won by resignation"]

1. d4 {[%clk 0:02:59.2]} 1... Nf6 {[%clk 0:02:56.8]} 2. Nf3 {[%clk 0:02:58.2]}
2... e6 {[%clk 0:02:52.9]} 3. e3 {[%clk 0:02:57.7]} 3... b6 {[%clk 0:02:51.8]}
4. Bd3 {[%clk 0:02:56.9]} 4... Bb7 {[%clk 0:02:52]} 5. O-O {[%clk 0:02:56.4]}
5... c5 {[%clk 0:02:49]} 6. b3 {[%clk 0:02:55.5]} 6... Be7 {[%clk 0:02:48]} 7.
Bb2 {[%clk 0:02:54.9]} 7... O-O {[%clk 0:02:47.9]} 8. c4 {[%clk 0:02:52.4]} 8...
d5 {[%clk 0:02:41.3]} 9. Nc3 {[%clk 0:02:51]} 9... Nbd7 {[%clk 0:02:31.5]} 10.
Qe2 {[%clk 0:02:49.9]} 10... Rc8 {[%clk 0:02:30.9]} 11. Rad1 {[%clk 0:02:48.7]}
11... Qc7 {[%clk 0:02:29.9]} 12. Ne5 {[%clk 0:02:47.7]} 12... Rfd8 {[%clk
0:02:20.8]} 13. f4 {[%clk 0:02:46.5]} 13... Qb8 {[%clk 0:02:05.9]} 14. cxd5
{[%clk 0:02:41.3]} 14... Nxd5 {[%clk 0:02:04.9]} 15. Bxh7+ {[%clk 0:02:35.4]}
15... Kf8 {[%clk 0:01:58.9]} 16. Nxd5 {[%clk 0:02:28]} 16... Bxd5 {[%clk
0:01:59.8]} 17. Qh5 {[%clk 0:02:22.4]} 1-0

[Event "Early-Titled-Tuesday-Blitz-April-16-2024"]
[Site "Chess.com"]
[Date "2024.04.16"]
[Round "1"]
[White "GiorgianBarbosa"]
[Black "KuzubovYuriy"]
[Result "0-1"]
[WhiteElo "2509"]
[BlackElo "2925"]
[TimeControl "180+1"]
[EndTime "8:03:33 PDT"]
[Termination "KuzubovYuriy won by resignation"]

1. c4 {[%clk 0:03:00.3]} 1... e6 {[%clk 0:02:59.4]} 2. g3 {[%clk 0:02:59.9]}
2... d5 {[%clk 0:02:59.3]} 3. Bg2 {[%clk 0:03:00.3]} 3... Nf6 {[%clk 0:02:59.6]}
4. Nf3 {[%clk 0:02:58.5]} 4... d4 {[%clk 0:02:59.2]} 5. e3 {[%clk 0:02:57]} 5...
c5 {[%clk 0:02:58.1]} 6. exd4 {[%clk 0:02:55.9]} 6... cxd4 {[%clk 0:02:58.5]} 7.
O-O {[%clk 0:02:56.8]} 7... Nc6 {[%clk 0:02:56.9]} 8. d3 {[%clk 0:02:57.7]} 8...
Bc5 {[%clk 0:02:48.6]} 9. Bf4 {[%clk 0:02:55.2]} 9... O-O {[%clk 0:02:46.7]} 10.
Ne5 {[%clk 0:02:54.2]} 10... Nxe5 {[%clk 0:02:44.1]} 11. Bxe5 {[%clk 0:02:55.1]}
11... Nd7 {[%clk 0:02:44.1]} 12. Bf4 {[%clk 0:02:53.9]} 12... e5 {[%clk
0:02:43.4]} 13. Bd2 {[%clk 0:02:52.4]} 13... a5 {[%clk 0:02:29.7]} 14. Na3
{[%clk 0:02:51.1]} 14... Bxa3 {[%clk 0:02:29.6]} 15. bxa3 {[%clk 0:02:50.7]}
15... Nc5 {[%clk 0:02:30.3]} 16. Qc2 {[%clk 0:02:43.8]} 16... Bf5 {[%clk
0:02:28.7]} 17. Be4 {[%clk 0:02:38.4]} 17... Bxe4 {[%clk 0:02:14.8]} 18. dxe4
{[%clk 0:02:39.3]} 18... d3 {[%clk 0:02:09.1]} 19. Qb2 {[%clk 0:02:32.1]} 19...
Nxe4 {[%clk 0:02:08.5]} 20. Rfe1 {[%clk 0:02:31]} 20... Nxd2 {[%clk 0:02:06.4]}
21. Qxd2 {[%clk 0:02:31.9]} 21... Qd4 {[%clk 0:02:04.4]} 22. Rab1 {[%clk
0:02:27]} 22... Rac8 {[%clk 0:01:50.5]} 23. Rxb7 {[%clk 0:02:21.8]} 23... Rxc4
{[%clk 0:01:49.9]} 24. Rb3 {[%clk 0:02:20.2]} 24... e4 {[%clk 0:01:48.3]} 25.
Qxa5 {[%clk 0:02:11.6]} 25... d2 {[%clk 0:01:38.3]} 26. Rd1 {[%clk 0:02:11.8]}
26... Rc1 {[%clk 0:01:37.7]} 27. Rb1 {[%clk 0:02:06]} 27... Rxb1 {[%clk
0:01:37.3]} 28. Rxb1 {[%clk 0:02:06.9]} 28... d1=Q+ {[%clk 0:01:37.3]} 29. Rxd1
{[%clk 0:02:06.7]} 29... Qxd1+ {[%clk 0:01:38.1]} 0-1

[Event "Early-Titled-Tuesday-Blitz-April-16-2024"]
[Site "Chess.com"]
[Date "2024.04.16"]
[Round "1"]
[White "Kiborg95"]
[Black "Eliwood44"]
[Result "1-0"]
[WhiteElo "2852"]
[BlackElo "2481"]
[TimeControl "180+1"]
[EndTime "8:03:37 PDT"]
[Termination "Kiborg95 won by resignation"]

1. e4 {[%clk 0:03:00.9]} 1... e5 {[%clk 0:02:58.2]} 2. Nf3 {[%clk 0:03:01.2]}
2... Nc6 {[%clk 0:02:58.4]} 3. Bc4 {[%clk 0:03:01.6]} 3... Nf6 {[%clk
0:02:58.6]} 4. d3 {[%clk 0:03:02.2]} 4... a6 {[%clk 0:02:58.8]} 5. O-O {[%clk
0:03:01.1]} 5... h6 {[%clk 0:02:59]} 6. c3 {[%clk 0:02:54.2]} 6... Bc5 {[%clk
0:02:58.6]} 7. Re1 {[%clk 0:02:53.4]} 7... d6 {[%clk 0:02:58.6]} 8. Bb3 {[%clk
0:02:53.9]} 8... O-O {[%clk 0:02:56.2]} 9. h3 {[%clk 0:02:53.1]} 9... Re8 {[%clk
0:02:55.4]} 10. Nbd2 {[%clk 0:02:53.6]} 10... Ba7 {[%clk 0:02:53.8]} 11. Nf1
{[%clk 0:02:53.6]} 11... Be6 {[%clk 0:02:53.6]} 12. Bc2 {[%clk 0:02:54.3]} 12...
Qd7 {[%clk 0:02:52.4]} 13. Ng3 {[%clk 0:02:54]} 13... Rad8 {[%clk 0:02:47.2]}
14. d4 {[%clk 0:02:53]} 14... exd4 {[%clk 0:02:33.1]} 15. cxd4 {[%clk
0:02:53.4]} 15... d5 {[%clk 0:02:33.4]} 16. e5 {[%clk 0:02:53.5]} 16... Ne4
{[%clk 0:02:33.3]} 17. Be3 {[%clk 0:02:47.6]} 17... Nxg3 {[%clk 0:02:27.7]} 18.
fxg3 {[%clk 0:02:48.5]} 18... Bf5 {[%clk 0:02:27.7]} 19. Rc1 {[%clk 0:02:41.5]}
19... Be4 {[%clk 0:02:26.7]} 20. Kh2 {[%clk 0:02:32.8]} 20... Nb4 {[%clk
0:02:20.2]} 21. Bb1 {[%clk 0:01:53.7]} 21... Bxb1 {[%clk 0:02:14.8]} 22. Rxb1
{[%clk 0:01:54.6]} 22... Nxa2 {[%clk 0:02:09.1]} 23. Qb3 {[%clk 0:01:50.5]}
23... c5 {[%clk 0:01:41.5]} 24. Qxa2 {[%clk 0:01:47.2]} 24... cxd4 {[%clk
0:01:41]} 25. Bxd4 {[%clk 0:01:48.1]} 25... Bxd4 {[%clk 0:01:40.7]} 26. Nxd4
{[%clk 0:01:49]} 1-0

[Event "Early-Titled-Tuesday-Blitz-April-16-2024"]
[Site "Chess.com"]
[Date "2024.04.16"]
[Round "1"]
[White "Stanbad1"]
[Black "Incognizance"]
[Result "1-0"]
[WhiteElo "2549"]
[BlackElo "1911"]
[TimeControl "180+1"]
[EndTime "8:03:38 PDT"]
[Termination "Stanbad1 won by checkmate"]

1. d4 {[%clk 0:02:59.6]} 1... Nf6 {[%clk 0:02:58.3]} 2. Nc3 {[%clk 0:02:58.3]}
2... d5 {[%clk 0:02:58.3]} 3. Bf4 {[%clk 0:02:58]} 3... e6 {[%clk 0:02:58.3]} 4.
Nb5 {[%clk 0:02:57.5]} 4... Na6 {[%clk 0:02:57.4]} 5. e3 {[%clk 0:02:57.5]} 5...
c6 {[%clk 0:02:54.7]} 6. Nc3 {[%clk 0:02:54.1]} 6... Nc7 {[%clk 0:02:54.6]} 7.
Nf3 {[%clk 0:02:54.4]} 7... Bd6 {[%clk 0:02:54.5]} 8. Ne5 {[%clk 0:02:54.7]}
8... O-O {[%clk 0:02:51]} 9. Qf3 {[%clk 0:02:54.9]} 9... Nd7 {[%clk 0:02:38.6]}
10. Nxc6 {[%clk 0:02:51.6]} 10... bxc6 {[%clk 0:02:36.4]} 11. Bxd6 {[%clk
0:02:51.9]} 11... Nb6 {[%clk 0:02:36.4]} 12. Bxf8 {[%clk 0:02:51.2]} 12... Qxf8
{[%clk 0:02:33.6]} 13. Bd3 {[%clk 0:02:51.8]} 13... g6 {[%clk 0:02:32.9]} 14. h4
{[%clk 0:02:51]} 14... h5 {[%clk 0:02:23.7]} 15. Qg3 {[%clk 0:02:49.9]} 15...
Ne8 {[%clk 0:02:20.7]} 16. e4 {[%clk 0:02:48.8]} 16... Nf6 {[%clk 0:02:15.4]}
17. e5 {[%clk 0:02:48]} 17... Ng4 {[%clk 0:02:14.7]} 18. f3 {[%clk 0:02:47.7]}
18... Ne3 {[%clk 0:02:14.2]} 19. Qg5 {[%clk 0:02:46.2]} 19... Nf5 {[%clk
0:02:12.6]} 20. O-O-O {[%clk 0:02:43.5]} 20... Nc4 {[%clk 0:02:09.1]} 21. Bxc4
{[%clk 0:02:42.9]} 21... dxc4 {[%clk 0:02:09.3]} 22. g4 {[%clk 0:02:43.2]} 22...
Ng3 {[%clk 0:02:02.6]} 23. Rh3 {[%clk 0:02:41.6]} 23... hxg4 {[%clk 0:01:33.6]}
24. Rxg3 {[%clk 0:02:40.8]} 24... gxf3 {[%clk 0:01:34.3]} 25. h5 {[%clk
0:02:41.3]} 25... Qg7 {[%clk 0:01:27.2]} 26. hxg6 {[%clk 0:02:39.7]} 26... fxg6
{[%clk 0:01:27.6]} 27. Rf1 {[%clk 0:02:38.3]} 27... Bd7 {[%clk 0:01:27.2]} 28.
Qxg6 {[%clk 0:02:37.8]} 28... Qxg6 {[%clk 0:01:27.3]} 29. Rxg6+ {[%clk
0:02:38.7]} 29... Kh7 {[%clk 0:01:27.6]} 30. Rf6 {[%clk 0:02:39.2]} 30... Rg8
{[%clk 0:01:27]} 31. Rf7+ {[%clk 0:02:39.4]} 31... Rg7 {[%clk 0:01:27.1]} 32.
Rxg7+ {[%clk 0:02:39.5]} 32... Kxg7 {[%clk 0:01:28]} 33. Rxf3 {[%clk 0:02:39.8]}
33... Kg6 {[%clk 0:01:27.3]} 34. Ne4 {[%clk 0:02:39.4]} 34... Kh5 {[%clk
0:01:26.3]} 35. Nf6+ {[%clk 0:02:39]} 35... Kh4 {[%clk 0:01:25.2]} 36. Nxd7
{[%clk 0:02:39.9]} 36... Kg4 {[%clk 0:01:26]} 37. Rf7 {[%clk 0:02:40.6]} 37...
Kg3 {[%clk 0:01:25.9]} 38. Nc5 {[%clk 0:02:40.8]} 38... c3 {[%clk 0:01:26.5]}
39. Nxe6 {[%clk 0:02:40.9]} 39... cxb2+ {[%clk 0:01:26.7]} 40. Kxb2 {[%clk
0:02:41.5]} 40... c5 {[%clk 0:01:27.6]} 41. dxc5 {[%clk 0:02:41.2]} 41... a5
{[%clk 0:01:27.9]} 42. c6 {[%clk 0:02:42.1]} 42... a4 {[%clk 0:01:28.4]} 43. c7
{[%clk 0:02:42.8]} 43... a3+ {[%clk 0:01:29.3]} 44. Kxa3 {[%clk 0:02:42.9]}
44... Kg2 {[%clk 0:01:29]} 45. c8=Q {[%clk 0:02:43.3]} 45... Kg1 {[%clk
0:01:29.9]} 46. Qg8+ {[%clk 0:02:43.3]} 46... Kh2 {[%clk 0:01:30.1]} 47. Rh7#
{[%clk 0:02:44.2]} 1-0

[Event "Early-Titled-Tuesday-Blitz-April-16-2024"]
[Site "Chess.com"]
[Date "2024.04.16"]
[Round "1"]
[White "Lily_Schirmbeck"]
[Black "Likvidator228"]
[Result "0-1"]
[WhiteElo "1443"]
[BlackElo "2545"]
[TimeControl "180+1"]
[EndTime "8:03:41 PDT"]
[Termination "Likvidator228 won by resignation"]

1. g3 {[%clk 0:02:52.8]} 1... h5 {[%clk 0:02:59.5]} 2. d4 {[%clk 0:02:51.1]}
2... h4 {[%clk 0:02:59.5]} 3. Bg2 {[%clk 0:02:49.2]} 3... d5 {[%clk 0:02:59]} 4.
Bg5 {[%clk 0:02:44.9]} 4... h3 {[%clk 0:02:55.9]} 5. Bf3 {[%clk 0:02:44.2]} 5...
c6 {[%clk 0:02:52.7]} 6. c4 {[%clk 0:02:40.7]} 6... dxc4 {[%clk 0:02:50.7]} 7.
e4 {[%clk 0:02:28.6]} 7... Qa5+ {[%clk 0:02:44.1]} 8. Bd2 {[%clk 0:02:26.2]}
8... Qb6 {[%clk 0:02:44]} 9. Bc3 {[%clk 0:02:23.5]} 9... Nf6 {[%clk 0:02:43.9]}
10. Ne2 {[%clk 0:02:15.1]} 10... Bg4 {[%clk 0:02:39.6]} 11. Nf4 {[%clk
0:02:08.5]} 11... Bxf3 {[%clk 0:02:37.5]} 12. Qxf3 {[%clk 0:02:06.7]} 12... e6
{[%clk 0:02:37.6]} 13. O-O {[%clk 0:02:01.8]} 13... Nbd7 {[%clk 0:02:37]} 14. d5
{[%clk 0:01:59.2]} 14... e5 {[%clk 0:02:28.5]} 15. Ne2 {[%clk 0:01:54.6]} 15...
O-O-O {[%clk 0:02:22.2]} 16. Nd2 {[%clk 0:01:44.7]} 16... cxd5 {[%clk 0:02:06]}
17. exd5 {[%clk 0:01:42]} 17... Qa6 {[%clk 0:02:04]} 18. Qg4 {[%clk 0:01:07.8]}
18... Nxg4 {[%clk 0:02:02.6]} 0-1

[Event "Early-Titled-Tuesday-Blitz-April-16-2024"]
[Site "Chess.com"]
[Date "2024.04.16"]
[Round "1"]
[White "ljuks68"]
[Black "Alonmindlin"]
[Result "0-1"]
[WhiteElo "2375"]
[BlackElo "2665"]
[TimeControl "180+1"]
[EndTime "8:03:48 PDT"]
[Termination "Alonmindlin won by resignation"]

1. e4 {[%clk 0:03:00.9]} 1... g6 {[%clk 0:02:56.9]} 2. d4 {[%clk 0:03:00.6]}
2... Bg7 {[%clk 0:02:57.4]} 3. Nc3 {[%clk 0:03:00.9]} 3... d6 {[%clk 0:02:58]}
4. f4 {[%clk 0:03:00.6]} 4... c6 {[%clk 0:02:56.7]} 5. Nf3 {[%clk 0:02:59]} 5...
Bg4 {[%clk 0:02:54.6]} 6. Be3 {[%clk 0:02:57.3]} 6... Nd7 {[%clk 0:02:53.5]} 7.
e5 {[%clk 0:02:54.4]} 7... e6 {[%clk 0:02:49.9]} 8. h3 {[%clk 0:02:51.4]} 8...
Bxf3 {[%clk 0:02:49.8]} 9. Qxf3 {[%clk 0:02:51.7]} 9... Ne7 {[%clk 0:02:49.7]}
10. Bd3 {[%clk 0:02:50.9]} 10... O-O {[%clk 0:02:43.7]} 11. O-O-O {[%clk
0:02:49]} 11... d5 {[%clk 0:02:39.2]} 12. g4 {[%clk 0:02:48.8]} 12... c5 {[%clk
0:02:39.4]} 13. dxc5 {[%clk 0:02:46.5]} 13... Nc6 {[%clk 0:02:38.7]} 14. Nb5
{[%clk 0:02:41]} 14... Qa5 {[%clk 0:02:36.8]} 15. Kb1 {[%clk 0:02:31.2]} 15...
Nb4 {[%clk 0:02:36.3]} 16. Nc3 {[%clk 0:02:30.5]} 16... Nxc5 {[%clk 0:02:31.2]}
17. a3 {[%clk 0:02:11.2]} 17... Nbxd3 {[%clk 0:02:23.5]} 18. cxd3 {[%clk
0:02:11]} 18... Rfc8 {[%clk 0:02:21.1]} 19. f5 {[%clk 0:02:04.1]} 19... Nd7
{[%clk 0:02:17.6]} 20. d4 {[%clk 0:01:59.9]} 20... Rxc3 {[%clk 0:02:15.7]} 21.
bxc3 {[%clk 0:01:59.9]} 21... Qxc3 {[%clk 0:02:16.6]} 22. Rd2 {[%clk 0:01:52]}
22... Nxe5 {[%clk 0:02:08.8]} 23. dxe5 {[%clk 0:01:48.5]} 23... Bxe5 {[%clk
0:02:09.7]} 24. Qf2 {[%clk 0:01:28.1]} 24... Qa1+ {[%clk 0:01:59.1]} 25. Kc2
{[%clk 0:01:27.1]} 25... Rc8+ {[%clk 0:01:58.7]} 26. Kd3 {[%clk 0:01:24.9]}
26... Qxh1 {[%clk 0:01:57.5]} 0-1

[Event "Early-Titled-Tuesday-Blitz-April-16-2024"]
[Site "Chess.com"]
[Date "2024.04.16"]
[Round "1"]
[White "Koalaskakistis"]
[Black "IsaqueGoncalvesSanto"]
[Result "1-0"]
[WhiteElo "2547"]
[BlackElo "1835"]
[TimeControl "180+1"]
[EndTime "8:03:54 PDT"]
[Termination "Koalaskakistis won by resignation"]

1. e4 {[%clk 0:02:57.6]} 1... e6 {[%clk 0:02:59.1]} 2. d4 {[%clk 0:02:54.6]}
2... d5 {[%clk 0:02:52.1]} 3. Nd2 {[%clk 0:02:52.4]} 3... Nc6 {[%clk 0:02:50.5]}
4. Ngf3 {[%clk 0:02:50.4]} 4... Nf6 {[%clk 0:02:49.4]} 5. e5 {[%clk 0:02:39.4]}
5... Nd7 {[%clk 0:02:46.9]} 6. c3 {[%clk 0:02:39.9]} 6... f6 {[%clk 0:02:44.2]}
7. exf6 {[%clk 0:02:39.6]} 7... Qxf6 {[%clk 0:02:42.5]} 8. Bd3 {[%clk
0:02:39.9]} 8... Bd6 {[%clk 0:02:39.9]} 9. O-O {[%clk 0:02:37.4]} 9... O-O
{[%clk 0:02:37.9]} 10. Re1 {[%clk 0:02:31.3]} 10... e5 {[%clk 0:02:33.1]} 11.
Qb3 {[%clk 0:02:32]} 11... Qf7 {[%clk 0:02:12.5]} 12. Re2 {[%clk 0:02:06.9]}
12... e4 {[%clk 0:02:05.2]} 13. Nxe4 {[%clk 0:02:06.6]} 13... dxe4 {[%clk
0:02:03.8]} 14. Bc4 {[%clk 0:02:06.8]} 1-0

[Event "Early-Titled-Tuesday-Blitz-April-16-2024"]
[Site "Chess.com"]
[Date "2024.04.16"]
[Round "1"]
[White "FGHSMN"]
[Black "KINGOF2SOAP"]
[Result "1-0"]
[WhiteElo "2900"]
[BlackElo "2501"]
[TimeControl "180+1"]
[EndTime "8:04:14 PDT"]
[Termination "FGHSMN won by checkmate"]

1. Nf3 {[%clk 0:02:58.5]} 1... g6 {[%clk 0:02:57.3]} 2. d4 {[%clk 0:02:57.4]}
2... Bg7 {[%clk 0:02:57.1]} 3. e4 {[%clk 0:02:58]} 3... c5 {[%clk 0:02:57]} 4.
d5 {[%clk 0:02:55.1]} 4... d6 {[%clk 0:02:54.9]} 5. h3 {[%clk 0:02:52.7]} 5...
Nf6 {[%clk 0:02:47.3]} 6. Nc3 {[%clk 0:02:51.4]} 6... a6 {[%clk 0:02:45.1]} 7.
a4 {[%clk 0:02:50.2]} 7... O-O {[%clk 0:02:45]} 8. Be2 {[%clk 0:02:47.6]} 8...
Nbd7 {[%clk 0:02:43.8]} 9. O-O {[%clk 0:02:45.8]} 9... e6 {[%clk 0:02:31.8]} 10.
dxe6 {[%clk 0:02:44]} 10... fxe6 {[%clk 0:02:32.7]} 11. Qxd6 {[%clk 0:02:43.7]}
11... Qe8 {[%clk 0:02:27.4]} 12. Bg5 {[%clk 0:02:31.5]} 12... Rf7 {[%clk
0:02:18.8]} 13. Rad1 {[%clk 0:02:28.2]} 13... h6 {[%clk 0:02:12.4]} 14. Be3
{[%clk 0:02:27.4]} 14... Bf8 {[%clk 0:02:04.3]} 15. Qd2 {[%clk 0:02:26.8]} 15...
Rh7 {[%clk 0:01:58.9]} 16. e5 {[%clk 0:02:26.1]} 16... Nh5 {[%clk 0:01:52.9]}
17. Ne4 {[%clk 0:02:25.8]} 17... Bg7 {[%clk 0:01:47.5]} 18. g4 {[%clk
0:02:18.5]} 18... b6 {[%clk 0:01:36.5]} 19. gxh5 {[%clk 0:02:18.2]} 19... gxh5
{[%clk 0:01:34.8]} 20. Kh2 {[%clk 0:02:06.5]} 20... Bb7 {[%clk 0:01:31.2]} 21.
Qxd7 {[%clk 0:02:04.2]} 21... Bxe5+ {[%clk 0:01:22]} 22. Nxe5 {[%clk 0:02:03.7]}
22... Rxd7 {[%clk 0:01:22.6]} 23. Nf6+ {[%clk 0:02:00.2]} 23... Kf8 {[%clk
0:01:12.6]} 24. Nexd7+ {[%clk 0:01:58]} 24... Qxd7 {[%clk 0:01:06.9]} 25. Rxd7
{[%clk 0:01:56.5]} 25... Bc6 {[%clk 0:01:02]} 26. Bxh6# {[%clk 0:01:57.4]} 1-0

[Event "Early-Titled-Tuesday-Blitz-April-16-2024"]
[Site "Chess.com"]
[Date "2024.04.16"]
[Round "1"]
[White "HanSchut"]
[Black "WilsonPalencia21"]
[Result "0-1"]
[WhiteElo "2301"]
[BlackElo "2613"]
[TimeControl "180+1"]
[EndTime "8:04:14 PDT"]
[Termination "WilsonPalencia21 won by resignation"]

1. e4 {[%clk 0:02:59.9]} 1... c5 {[%clk 0:02:59.8]} 2. Nf3 {[%clk 0:02:59.1]}
2... d6 {[%clk 0:03:00.2]} 3. d4 {[%clk 0:02:59.3]} 3... cxd4 {[%clk 0:03:01.1]}
4. Nxd4 {[%clk 0:02:59.8]} 4... Nf6 {[%clk 0:03:01.6]} 5. f3 {[%clk 0:03:00.4]}
5... e5 {[%clk 0:03:00.7]} 6. Bb5+ {[%clk 0:03:00.9]} 6... Bd7 {[%clk
0:02:56.1]} 7. Bxd7+ {[%clk 0:03:00.5]} 7... Qxd7 {[%clk 0:02:54.7]} 8. Nf5
{[%clk 0:03:01.1]} 8... d5 {[%clk 0:02:55.2]} 9. Bg5 {[%clk 0:03:01.2]} 9...
dxe4 {[%clk 0:02:50.9]} 10. Bxf6 {[%clk 0:03:01.7]} 10... gxf6 {[%clk
0:02:43.5]} 11. fxe4 {[%clk 0:03:00.3]} 11... Rg8 {[%clk 0:02:36.1]} 12. g3
{[%clk 0:02:42.1]} 12... Qxd1+ {[%clk 0:02:34.2]} 13. Kxd1 {[%clk 0:02:42.4]}
13... Rg4 {[%clk 0:02:33.6]} 14. Re1 {[%clk 0:02:40.1]} 14... Nc6 {[%clk
0:02:32.7]} 15. c3 {[%clk 0:02:40]} 15... O-O-O+ {[%clk 0:02:30.6]} 16. Kc2
{[%clk 0:02:39.8]} 16... Ne7 {[%clk 0:02:30.5]} 17. Nxe7+ {[%clk 0:02:31.8]}
17... Bxe7 {[%clk 0:02:30.5]} 18. Nd2 {[%clk 0:02:32.3]} 18... h5 {[%clk
0:02:27.8]} 19. Nf3 {[%clk 0:02:32.2]} 19... f5 {[%clk 0:02:22.5]} 20. Nxe5
{[%clk 0:02:22.9]} 20... Rxe4 {[%clk 0:02:22.1]} 21. Nxf7 {[%clk 0:02:01.3]}
21... Rf8 {[%clk 0:02:20.2]} 22. Ne5 {[%clk 0:01:49.1]} 22... h4 {[%clk
0:02:19.9]} 23. Ng6 {[%clk 0:01:45.4]} 23... Rf7 {[%clk 0:02:17.5]} 24. Rxe4
{[%clk 0:01:37.6]} 24... fxe4 {[%clk 0:02:13.6]} 25. Nxe7+ {[%clk 0:01:34.8]}
25... Rxe7 {[%clk 0:02:13.8]} 26. gxh4 {[%clk 0:01:32.7]} 26... Rh7 {[%clk
0:02:13.4]} 27. Re1 {[%clk 0:01:32.7]} 27... Rxh4 {[%clk 0:02:13]} 28. Re2
{[%clk 0:01:33.4]} 28... Kd7 {[%clk 0:02:12.8]} 29. c4 {[%clk 0:01:33.2]} 29...
Kd6 {[%clk 0:02:13]} 30. Kc3 {[%clk 0:01:33.2]} 30... Ke5 {[%clk 0:02:12.4]} 31.
b4 {[%clk 0:01:32.5]} 31... Rh3+ {[%clk 0:02:12]} 32. Kb2 {[%clk 0:01:28.1]}
32... Kd4 {[%clk 0:02:11.9]} 33. c5 {[%clk 0:01:28.2]} 33... Kd3 {[%clk
0:02:08.3]} 34. Rc2 {[%clk 0:01:27.9]} 34... e3 {[%clk 0:02:06.8]} 35. b5 {[%clk
0:01:28.3]} 35... Rh5 {[%clk 0:02:04]} 36. a4 {[%clk 0:01:27.1]} 36... e2 {[%clk
0:01:58.8]} 37. Rc3+ {[%clk 0:01:20.3]} 37... Kd4 {[%clk 0:01:58.3]} 38. Rc2
{[%clk 0:01:19.6]} 0-1

[Event "Early-Titled-Tuesday-Blitz-April-16-2024"]
[Site "Chess.com"]
[Date "2024.04.16"]
[Round "1"]
[White "whitemirrorninja"]
[Black "scarabee43"]
[Result "0-1"]
[WhiteElo "2470"]
[BlackElo "2828"]
[TimeControl "180+1"]
[EndTime "8:04:23 PDT"]
[Termination "scarabee43 won by resignation"]

1. d4 {[%clk 0:03:00.9]} 1... Nf6 {[%clk 0:02:59.7]} 2. c4 {[%clk 0:03:00.5]}
2... e6 {[%clk 0:03:00.1]} 3. Nc3 {[%clk 0:03:00.2]} 3... d5 {[%clk 0:02:59.8]}
4. cxd5 {[%clk 0:02:59.7]} 4... exd5 {[%clk 0:03:00.4]} 5. Bg5 {[%clk
0:02:59.9]} 5... Be7 {[%clk 0:03:00.7]} 6. e3 {[%clk 0:03:00.2]} 6... h6 {[%clk
0:03:00.9]} 7. Bxf6 {[%clk 0:03:00]} 7... Bxf6 {[%clk 0:03:00.8]} 8. Bd3 {[%clk
0:02:59.2]} 8... c6 {[%clk 0:02:55.8]} 9. Nge2 {[%clk 0:02:58.9]} 9... O-O
{[%clk 0:02:55.8]} 10. O-O {[%clk 0:02:59.1]} 10... a5 {[%clk 0:02:53.2]} 11. a4
{[%clk 0:02:54.1]} 11... Na6 {[%clk 0:02:52.6]} 12. Rc1 {[%clk 0:02:46.5]} 12...
Nb4 {[%clk 0:02:49.7]} 13. Bb1 {[%clk 0:02:46]} 13... Re8 {[%clk 0:02:46.6]} 14.
Qd2 {[%clk 0:02:45.4]} 14... g6 {[%clk 0:02:41.3]} 15. Rce1 {[%clk 0:02:42.3]}
15... Bg7 {[%clk 0:02:40.1]} 16. Nc1 {[%clk 0:02:42.1]} 16... h5 {[%clk
0:02:38.7]} 17. Nd3 {[%clk 0:02:40.7]} 17... Qd6 {[%clk 0:02:32]} 18. Nf4 {[%clk
0:02:32.4]} 18... Bd7 {[%clk 0:02:26.3]} 19. b3 {[%clk 0:02:19.4]} 19... Re7
{[%clk 0:02:25.2]} 20. Nd3 {[%clk 0:02:17.5]} 20... Nxd3 {[%clk 0:02:21.7]} 21.
Bxd3 {[%clk 0:02:15.5]} 21... Qb4 {[%clk 0:02:21.7]} 22. Qc2 {[%clk 0:02:14.1]}
22... Rae8 {[%clk 0:02:20.1]} 23. Re2 {[%clk 0:02:10.8]} 23... Bg4 {[%clk
0:02:18.4]} 24. f3 {[%clk 0:02:09.5]} 24... Rxe3 {[%clk 0:02:10.7]} 25. Rxe3
{[%clk 0:01:40.3]} 25... Rxe3 {[%clk 0:02:11.1]} 26. fxg4 {[%clk 0:01:39.4]}
26... Qxd4 {[%clk 0:02:08.4]} 27. Kh1 {[%clk 0:01:07.9]} 27... Qxd3 {[%clk
0:02:05.7]} 28. Qf2 {[%clk 0:01:01.2]} 28... Qxf1+ {[%clk 0:02:04.4]} 29. Qxf1
{[%clk 0:01:00]} 29... Bxc3 {[%clk 0:02:05]} 0-1